[Event "Portuguese Team Blitz-ch 2022"]
[Site "Viseu"]
[Date "2022.06.12"]
[Round "2.4"]
[White "Silva, Goncalo Nuno Neto Pi"]
[Black "Brosa Alvarez, Ricardo"]
[Result "1-0"]
[ECO "B40"]
[WhiteElo "2169"]
[BlackElo "2113"]
[Annotator "TA"]
[PlyCount "98"]
[EventDate "2022.06.12"]
[EventType "team-tourn"]
[EventCountry "POR"]
[SourceTitle "playchess.com"]
[Source "ChessBase"]
[SourceQuality "1"]
[TimeControl "180+2"]

{[%evp 13,98,31,39,40,30,0,-7,-89,5,29,29,0,41,46,40,35,97,49,44,44,56,36,68,59,62,50,53,41,238,235,257,235,238,237,238,227,231,214,203,207,206,198,204,212,226,229,233,232,228,235,206,220,231,216,220,216,200,8,85,79,83,70,70,71,82,0,0,0,0,0,696,521,12818,6737,12844,12844,12850,12841,12841,0,0,0,0,0,0,0,0]} 1. e4 {[%emt 0:00:02]} c5 {[%emt 0:00:01]} 2. Nf3 {[%emt 0:00:01]} e6 3. c3 d5 {[%emt 0:00:03]} 4. exd5 {[%emt 0:00:01]} exd5 {[%emt 0:00:01]} 5. d4 {[%emt 0:00:01]} Nf6 {[%emt 0:00:05]} 6. Bb5+ {[%emt 0:00:03]} Nc6 {[%emt 0:00:03]} 7. O-O {[%emt 0:00:03]} Be7 {[%emt 0:00:02]} 8. dxc5 {[%emt 0:00:01] B22: Sicilian: 2 c3.} Bxc5 {[%emt 0:00:05] 8...Bxc5 scores better than 8...0-0.} 9. Re1+ {[%emt 0:00:01]} Be6 {[%emt 0:00:02]} 10. Ng5 {[%emt 0:00:06] [#]} (10. Be3 $11 Bxe3 11. Rxe3) 10... Qd7 $146 {[%emt 0:00:18]} ({Black should play} 10... Bxf2+ $1 $17 11. Kxf2 Qb6+ 12. Be3 Qxb5) ({Predecessor:} 10... O-O 11. Rxe6 fxe6 12. Nxe6 Qb6 13. Nxf8 Rxf8 14. Bxc6 Bxf2+ 15. Kh1 bxc6 16. Nd2 Be3 {½-½ (53) Tiarks,J (2180)-Mikhnenko,A (2095) Chess.com INT 2022}) 11. Nxe6 $11 {[%emt 0:00:03]} fxe6 {[%emt 0:00:03]} 12. Qe2 {[%emt 0:00:14]} (12. Be3 $5 {[%cal Re3c5]} Bxe3 13. Rxe3 $11) 12... Ne4 {[%emt 0:00:12]} 13. Be3 {[%emt 0:00:01]} Bxe3 {[%emt 0:00:02]} 14. Qxe3 {[%emt 0:00:01]} Kf7 {[%emt 0:00:20]} (14... O-O $14) 15. f3 {[%emt 0:00:02]} (15. Nd2 $16 Nxd2 16. Qf4+ (16. Qxd2 Rhe8 $14) 16... Kg8 17. Qxd2) 15... Nf6 $14 {[%emt 0:00:01]} 16. Nd2 {[%emt 0:00:05][%cal Bb1d2,Bd2b3,Bb3c5][%mdl 32]} Rhe8 {[%emt 0:00:02]} 17. Nb3 {[%emt 0:00:02]} a6 {[%emt 0:00:17]} 18. Nc5 {[%emt 0:00:00]} Qe7 {[%emt 0:00:05]} 19. Ba4 {[%emt 0:00:07][%cal Bb5a4,Ba4b3,Bb3d5,Bd5c6,Bc6b7,Bb7a6,Ba6c4][%mdl 32] White is more active.} b5 {[%emt 0:00:13]} 20. Bb3 {[%emt 0:00:05]} Nd7 $2 {[%emt 0:00:07] [#]} (20... Qa7 $14) 21. Nxe6 $1 $18 {[%emt 0:00:09][%mdl 512]} Qxe6 {[%emt 0:00:47]} (21... Nf6 22. Ng5+) 22. Qf4+ {[%emt 0:00:18]} Qf6 {[%emt 0:00:09]} 23. Bxd5+ {[%emt 0:00:01]} Kf8 {[%emt 0:00:01]} 24. Qxf6+ {[%emt 0:00:03]} Nxf6 {[%emt 0:00:07]} 25. Rxe8+ {[%emt 0:00:01]} Rxe8 {[%emt 0:00:06]} 26. Bxc6 {[%emt 0:00:01][%mdl 4096] Endgame KRB-KRN} Re2 {[%emt 0:00:02]} 27. b3 {[%emt 0:00:07]} Rc2 {[%emt 0:00:02]} 28. Bb7 {[%emt 0:00:02]} Rxc3 {[%emt 0:00:09]} 29. Bxa6 {[%emt 0:00:01]} b4 {[%emt 0:00:01]} 30. Bc4 {[%emt 0:00:01]} Nd7 {[%emt 0:00:05]} 31. a3 {[%emt 0:00:01]} bxa3 {[%emt 0:00:02]} 32. Rxa3 {[%emt 0:00:01]} Nb6 {[%emt 0:00:01]} 33. Be2 {[%emt 0:00:34]} Nd5 {[%emt 0:00:06]} 34. Ra8+ {[%emt 0:00:11]} Ke7 {[%emt 0:00:01]} 35. Kf2 $2 {[%emt 0:00:12]} ({Better is} 35. Ra7+ $18 Kf6 36. Bc4) 35... Rxb3 {[%emt 0:00:01]} (35... Rc2 $11) 36. Ra7+ {[%emt 0:00:01]} Kf6 {[%emt 0:00:03]} 37. Bc4 {[%emt 0:00:05]} Rb2+ {[%emt 0:00:00]} 38. Kg3 {[%emt 0:00:14]} Ne3 {[%emt 0:00:02][%csl LRc4,LRg2]} 39. Bd3 {[%emt 0:00:26]} (39. Ra6+ $16 Kf5 40. Be6+ Ke5 41. f4+ Ke4 42. Ra4+ Kd3 43. h4) 39... Rxg2+ $11 {[%emt 0:00:03]} 40. Kh3 {[%emt 0:00:23]} Rf2 {[%emt 0:00:06]} 41. Be4 {[%emt 0:00:04]} (41. Bxh7 $2 {gets mated.} Rxf3+ 42. Kh4 g5+ 43. Kh5 Rh3#) 41... Nc2 $2 {[%emt 0:00:15][%mdl 8192]} (41... Nf1 $11 42. f4 Rxf4 43. Bxh7 Rf2) 42. Ra2 $18 {[%emt 0:00:06]} Ke5 {[%emt 0:00:10]} 43. Rxc2 {[%emt 0:00:02]} Rxc2 {[%emt 0:00:02]} 44. Bxc2 {[%emt 0:00:00] KB-KPP} Kf4 {[%emt 0:00:01]} 45. Kg2 {[%emt 0:00:01]} g5 {[%emt 0:00:01]} 46. Bxh7 $2 {[%emt 0:00:02]} (46. Bd1 $18 h5 47. h3) 46... g4 $11 {[%emt 0:00:00] The position is equal.} 47. h4 {[%emt 0:00:26]} gxf3+ {[%emt 0:00:05]} 48. Kh3 {[%emt 0:00:03]} f2 {[%emt 0:00:02]} 49. Bd3 {[%emt 0:00:00]} f1=Q+ {[%emt 0:00:00][%mdl 32768] Weighted Error Value: White=0.33/Black=0.47. Loss on time!?} 1-0

[Event "Portuguese Team Blitz-ch 2022"]
[Site "Viseu"]
[Date "2022.06.12"]
[Round "2.5"]
[White "Santos, Jose Guilherme B Lim"]
[Black "Vidolin, Rodrigo Goncalves"]
[Result "1-0"]
[ECO "A04"]
[WhiteElo "2365"]
[BlackElo "1684"]
[Annotator "TA"]
[PlyCount "55"]
[EventDate "2022.06.12"]
[EventType "team-tourn"]
[EventCountry "POR"]
[SourceTitle "playchess.com"]
[Source "ChessBase"]
[SourceQuality "1"]
[TimeControl "180+2"]

{[%evp 9,55,77,73,58,84,83,103,69,92,85,83,81,100,95,98,95,133,68,164,162,131,131,175,166,174,145,148,122,247,95,122,74,87,87,259,91,202,282,881,880,777,423,29985,382,547,537,29998,29999]} 1. Nf3 Nc6 2. g3 e5 3. Bg2 Bc5 4. O-O Nf6 5. Nxe5 Nxe5 6. d4 {A04: Unusual lines after 1 Nf3 and King's Indian Attack.} Bxd4 7. Qxd4 Nc6 {[#]} 8. Qd2 $146 {White is better.} ({Predecessor:} 8. Qd1 O-O 9. e4 Re8 10. Bg5 h6 11. Bxf6 Qxf6 12. Nc3 d6 13. Nd5 Qd8 14. Re1 {0-1 (44) Jansen,A (649)-Thingstad,A (1301) Moss 2006}) 8... O-O 9. c4 {Prevents d5.} d6 10. Nc3 Be6 11. b3 Re8 12. Bb2 Qd7 13. Rad1 (13. Nd5 $16 Bxd5 14. cxd5 (14. Bxd5 Nxd5 15. cxd5 Ne5 $14)) 13... Rad8 ({Black should try} 13... Bh3 $14) 14. Nd5 Bxd5 15. cxd5 ({But not} 15. Bxd5 $6 Nxd5 16. cxd5 Ne5 $14) 15... Ne7 16. e4 c6 17. Bxf6 gxf6 18. Qd4 f5 {[#]} (18... Kg7 $16) 19. Rfe1 $2 ({Less strong is} 19. Qxa7 fxe4 20. Bxe4 c5 $16) (19. Bh3 $1 $18 {is the precise move to win.}) 19... c5 20. Qf6 {0x0.000bd68b5fd8dp-1022s more active pieces.} ({Better is} 20. Qd3) 20... fxe4 $16 21. Bxe4 {[%cal Bg2e4,Be4f3,Bf3g4][%mdl 32]} Ng6 $2 (21... Qg4 $16 {was worth a try.}) 22. h4 $2 (22. Bf5 $18 {and the rest is easy.} Qb5 23. h4 Rxe1+ 24. Rxe1) 22... Qg4 (22... Qe7 $16 23. Qf3 Qf8) 23. Bf3 $18 Rxe1+ $2 (23... Qd7 24. h5 Ne5 25. Rxe5 Rxe5) 24. Rxe1 Qd7 25. Bg4 Qc7 (25... Qxg4 $18 26. Qxd8+ Kg7) 26. f4 $2 (26. h5 {mates} Qa5 27. b4 Qxb4 28. Qxd8+ Kg7 {[#]} 29. Re8 $1 Qxg4 30. Rg8+ Kh6 31. hxg6 fxg6 32. Qxd6) 26... Rf8 (26... Kf8 $142 27. h5 Re8 28. Rxe8+ Kxe8 29. hxg6 hxg6) 27. h5 {[%cal Bh4h5,Bh5h6][%mdl 32] h6 would kill now.} Nh8 28. h6 {Weighted Error Value: White=0.80/Black=1.02} 1-0

[Event "Portuguese Team Blitz-ch 2022"]
[Site "Viseu"]
[Date "2022.06.12"]
[Round "2.7"]
[White "Bartolo, Filipe Diogo Correia"]
[Black "Lemos, Simao Ferreira"]
[Result "1-0"]
[ECO "C50"]
[WhiteElo "1811"]
[BlackElo "1105"]
[Annotator "NA RC COMBH"]
[PlyCount "45"]
[EventDate "2022.06.12"]
[EventType "team-tourn"]
[EventCountry "POR"]
[SourceTitle "playchess.com"]
[Source "ChessBase"]
[SourceQuality "1"]
[TimeControl "180+2"]

1. e4 {[%emt 0:00:02]} e5 {[%emt 0:00:01]} 2. Nf3 {[%emt 0:00:01]} Nc6 {[%emt 0:00:03]} 3. Bc4 {[%emt 0:00:01]} Bc5 {[%emt 0:00:04]} 4. O-O {[%emt 0:00:02]} d6 {[%emt 0:00:03]} 5. h3 {[%emt 0:00:00]} Be6 {[%emt 0:00:06]} 6. Bb5 {[%emt 0:00:12]} Bd7 {[%emt 0:00:05]} 7. c3 {[%emt 0:00:01]} Nf6 {[%emt 0:00:12]} 8. d4 {[%emt 0:00:10]} exd4 {[%emt 0:00:23]} 9. cxd4 {[%emt 0:00:01]} Bb6 {[%emt 0:00:22]} 10. Nc3 {[%emt 0:00:14]} O-O {[%emt 0:00:13]} 11. Bg5 {[%emt 0:00:02]} h6 {[%emt 0:00:08]} 12. Bh4 {[%emt 0:00:01]} a6 {[%emt 0:00:21]} 13. Bxc6 {[%emt 0:00:02]} Bxc6 {[%emt 0:00:03]} 14. d5 {[%emt 0:00:39]} Bb5 {[%emt 0:00:15]} 15. Nxb5 {[%emt 0:00:02]} axb5 {[%emt 0:00:02]} 16. Nd4 {[%emt 0:00:07]} g5 {[%emt 0:00:27]} 17. Bg3 {[%emt 0:00:07]} Nxe4 {[%emt 0:00:03]} 18. Nf5 {[%emt 0:00:09]} Qf6 {[%emt 0:00:13]} 19. Qg4 {[%emt 0:00:16]} Nxg3 {[%emt 0:00:12]} 20. Nxg3 {[%emt 0:00:04]} Qxb2 {[%emt 0:00:06]} 21. h4 {[%emt 0:00:11]} f6 {[%emt 0:00:06]} 22. Nf5 {[%emt 0:00:02]} Rfe8 {[%emt 0:00:11]} 23. Qh5 {[%emt 0:00:05]} 1-0

[Event "Portuguese Team Blitz-ch 2022"]
[Site "Viseu"]
[Date "2022.06.12"]
[Round "2.8"]
[White "Martins Jr Sobrinho, Manuel De"]
[Black "Gallo Garcia, Kemel Antonio"]
[Result "1-0"]
[ECO "B13"]
[WhiteElo "2002"]
[BlackElo "2332"]
[Annotator "TA"]
[PlyCount "73"]
[EventDate "2022.06.12"]
[EventType "team-tourn"]
[EventCountry "POR"]
[SourceTitle "playchess.com"]
[Source "ChessBase"]
[SourceQuality "1"]
[TimeControl "180+2"]

{[%evp 12,73,18,10,8,6,10,0,0,0,4,1,15,6,7,0,-1,-6,0,-17,-11,-41,-8,-26,-7,-18,-15,-20,-22,-19,10,-79,0,0,95,0,20,0,137,102,129,142,178,120,179,142,216,198,371,148,229,229,889,43,45,-371,271,-117,388,390,415,393,678,630]} 1. e4 {[%emt 0:00:01]} c6 {[%emt 0:00:03]} 2. d4 {[%emt 0:00:01]} d5 {[%emt 0:00:01]} 3. exd5 {[%emt 0:00:01]} cxd5 {[%emt 0:00:02]} 4. c3 {[%emt 0:00:01]} Nf6 {[%emt 0:00:04]} 5. Bd3 {[%emt 0:00:01]} Nc6 {[%emt 0:00:01]} 6. Ne2 {[%emt 0:00:01]} Bg4 {[%emt 0:00:10]} 7. O-O {[%emt 0:00:07]} e6 {[%emt 0:00:01] B13: Caro-Kann: Exchange Variation and Panov-Botvinnik Attack.} 8. Bf4 {[%emt 0:00:04]} Bd6 {[%emt 0:00:09]} 9. f3 {[%emt 0:00:02]} Bh5 {[%emt 0:00:18] The position is equal.} 10. Re1 {[%emt 0:00:06]} O-O {[%emt 0:00:02]} 11. Nd2 {[%emt 0:00:08]} Qc7 {[%emt 0:00:01]} 12. Bxd6 {[%emt 0:00:11]} Qxd6 {[%emt 0:00:03] [#]} 13. Ng3 $146 {[%emt 0:00:03]} ({Predecessor:} 13. Nf1 a6 14. Qd2 Bg6 15. Nf4 Bxd3 16. Nxd3 Nd7 17. Ne3 b5 18. Ng4 Na5 19. Qg5 {½-½ (19) Popelyshev,I (2109)-Zhukov,D (2059) Rybinsk 2009}) 13... Bg6 {[%emt 0:00:06]} 14. Ndf1 {[%emt 0:00:06]} Rae8 {[%emt 0:00:18]} 15. Bb5 {[%emt 0:00:25]} a6 {[%emt 0:00:02]} 16. Bxc6 {[%emt 0:00:06]} Qxc6 {[%emt 0:00:01]} 17. Qe2 {[%emt 0:00:09]} Qd6 {[%emt 0:00:15]} 18. Qe5 {[%emt 0:00:03]} Qb6 {[%emt 0:00:14]} 19. Re2 {[%emt 0:00:14]} Nd7 {[%emt 0:00:01]} 20. Qf4 {[%emt 0:00:16]} f6 {[%emt 0:00:23]} 21. Rae1 {[%emt 0:00:02] [#]} (21. Ne3 $11) 21... e5 {[%emt 0:00:04]} (21... Ne5 $1 $17 {And now ...Nd3 would win.} 22. Qd2 Nd3) 22. Qd2 $11 {[%emt 0:00:05]} Rf7 {[%emt 0:00:40]} (22... f5 $11 {keeps the balance.}) 23. Kh1 {[%emt 0:00:01]} ({White should try} 23. Ne3 $16) 23... Rfe7 {[%emt 0:00:01]} 24. dxe5 {[%emt 0:00:04]} fxe5 {[%emt 0:00:01]} (24... Nxe5 $11 25. Qxd5+ Kf8) 25. Qxd5+ {[%emt 0:00:02]} Kh8 {[%emt 0:00:01]} 26. Ne4 {[%emt 0:00:10] Prevents Nc5.} Bf7 {[%emt 0:00:15]} 27. Qd2 {[%emt 0:00:03]} ({White should play} 27. Qd6 $18) 27... Kg8 {[%emt 0:00:13]} (27... Bxa2 $16 {keeps fighting.} 28. Qd6 Bc4) 28. Nfg3 {[%emt 0:00:02] Threatens to win with Nf5.} Bc4 {[%emt 0:00:03]} (28... Nf8 $16 {was called for.}) 29. Re3 $18 {[%emt 0:00:07] Strongly threatening Nf5.} Nf6 $2 {[%emt 0:00:05]} (29... Be6 {was necessary.} 30. b3 Nf6) 30. b3 $2 {[%emt 0:00:05]} (30. Nd6 Rd8 $18) (30. Nf5 $18) 30... Bf7 {[%emt 0:00:03]} (30... Nxe4 $16 31. Nxe4 Rd8) 31. Nf5 {[%emt 0:00:04] Pair of Knights!} Rd7 $2 {[%emt 0:00:02]} (31... Rc7 32. Ned6 Rd8) 32. Ned6 $2 {[%emt 0:00:07]} (32. Nxf6+ $18 Qxf6 33. Qxd7) 32... Red8 $14 {[%emt 0:00:08][%cal Rd7d6]} 33. Rd1 $2 {[%emt 0:00:01][%mdl 8192]} (33. Rxe5 $14 {stays ahead.} Rxd6 34. Qg5 (34. Nxd6 Rxd6 35. Qe2 Rd7 $14)) 33... Nd5 $4 {[%emt 0:00:04][%mdl 8192]} (33... Be6 $19 {Hoping for ...Bxf5.} 34. f4 Bxf5 35. fxe5 Qc6) 34. Rd3 $2 {[%emt 0:00:05] [#]} (34. Rxe5 $18 Rxd6 35. c4 (35. Nxd6 Qxd6 36. Qd4 Qd7 $18)) 34... Rxd6 $4 {[%emt 0:00:02][%mdl 8192]} (34... Nf4 $1 $17 {[%cal Rf4d3] keeps the pressure on.} 35. Qe3 (35. Re3 $2 Bg6 $19) 35... Qxe3 36. Rxe3 Be6) 35. Nxd6 $18 {[%emt 0:00:01]} Rxd6 {[%emt 0:00:01]} 36. c4 {[%emt 0:00:01]} Bg6 $2 {[%emt 0:00:10]} (36... Qd8 37. cxd5 h6) 37. Rxd5 {[%emt 0:00:02] Weighted Error Value: White=0.85/Black=0.87} 1-0

[Event "Portuguese Team Blitz-ch 2022"]
[Site "Viseu"]
[Date "2022.06.12"]
[Round "3.1"]
[White "Veiga, Jose Francisco R P N"]
[Black "Santos, Jose Guilherme B Lim"]
[Result "1-0"]
[ECO "B15"]
[WhiteElo "2377"]
[BlackElo "2365"]
[Annotator "TA"]
[PlyCount "127"]
[EventDate "2022.06.12"]
[EventType "team-tourn"]
[EventCountry "POR"]
[SourceTitle "playchess.com"]
[Source "ChessBase"]
[SourceQuality "1"]
[TimeControl "180+2"]

{[%evp 16,127,0,0,0,0,39,0,-3,-18,-18,-29,-14,-20,-12,-12,38,0,31,25,21,14,12,14,52,16,35,2,8,0,15,0,0,0,7,0,0,0,18,0,0,0,0,0,0,0,0,0,19,0,0,5,33,33,41,25,32,23,23,12,77,66,197,201,180,115,116,110,187,109,208,183,295,288,322,275,342,342,335,256,543,521,533,148,129,147,260,133,160,149,377,8,410,346,346,343,354,243,264,97,87,61,70,72,1284,1109,874,799,29959,12845,29988,29989,29990,29991]} 1. e4 {[%emt 0:00:04]} c6 {[%emt 0:00:03]} 2. d4 {[%emt 0:00:03]} d5 {[%emt 0:00:01]} 3. Nc3 {[%emt 0:00:01]} dxe4 {[%emt 0:00:01]} 4. Nxe4 {[%emt 0:00:02]} Nf6 {[%emt 0:00:01]} 5. Nxf6+ {[%emt 0:00:22]} exf6 {[%emt 0:00:02]} 6. Nf3 {[%emt 0:00:02]} Bd6 {[%emt 0:00:03]} 7. Bd3 {[%emt 0:00:01]} O-O {[%emt 0:00:02]} 8. O-O {[%emt 0:00:02]} Bg4 {[%emt 0:00:01][%cal Bc8g4,Bg4h5,Bh5g6][%mdl 32]} 9. h3 {[%emt 0:00:05]} Bh5 {[%emt 0:00:01] B15: Caro-Kann: 3 Nc3: 3...g6 and 3...dxe4 4 Nxe4 Nf6 5 Nxf6+ exf6.} 10. c3 {[%emt 0:00:09] 10.Bf5 is becoming the main line.} Re8 {[%emt 0:00:02]} 11. Be3 {[%emt 0:00:11]} (11. Qb3 {is interesting.} Qd7 12. Nh4 Be2 13. Bf5) 11... Nd7 {[%emt 0:00:03][%cal Bb8d7,Bd7b6,Bb6d5][%mdl 32] The position is equal.} 12. Bf5 {[%emt 0:00:10]} Nb6 {[%emt 0:00:05]} 13. Bg4 {[%emt 0:00:06]} Bg6 {[%emt 0:00:01] [#]} 14. Nh4 $146 {[%emt 0:00:02] Prevents f5.} ({Predecessor:} 14. Nd2 f5 15. c4 Bc7 16. Bxf5 Bxf5 17. Qb3 Qd7 {0-1 (17) Ruszin,P (2140)-Abel,L (2311) Hungary 2001}) 14... Nd5 {[%emt 0:00:02]} 15. Bd2 {[%emt 0:00:11]} b5 {[%emt 0:00:01]} ({Black should play} 15... Be4 $11) 16. Nf5 {[%emt 0:00:11]} Bc7 {[%emt 0:00:07][%cal Oh7h5]} 17. Qf3 Bxf5 {[%emt 0:00:05]} 18. Bxf5 {[%emt 0:00:04]} Qd6 {[%emt 0:00:02][%csl Gc7][%cal Rd6h2]} 19. g3 {[%emt 0:00:01]} a5 {[%emt 0:00:13]} (19... g6 $5 {[%cal Rg6f5]} 20. Bd3 f5 $11) 20. Rfe1 {[%emt 0:00:11]} a4 {[%emt 0:00:04]} 21. Rad1 {[%emt 0:00:05]} g6 {[%emt 0:00:08]} 22. Bb1 {[%emt 0:00:07]} Kg7 {[%emt 0:00:02]} 23. h4 {[%emt 0:00:01]} h5 {[%emt 0:00:22]} 24. Kg2 {[%emt 0:00:01]} Qd7 {[%emt 0:00:01]} 25. Re4 {[%emt 0:00:13]} Rxe4 {[%emt 0:00:04]} 26. Bxe4 {[%emt 0:00:03]} Re8 {[%emt 0:00:03]} 27. Re1 {[%emt 0:00:02]} Re6 {[%emt 0:00:03]} 28. Bd3 {[%emt 0:00:07]} Rxe1 {[%emt 0:00:03]} 29. Bxe1 {[%emt 0:00:01]} Qe6 {[%emt 0:00:08]} 30. Bd2 {[%emt 0:00:03]} f5 {[%emt 0:00:05]} 31. Qe2 {[%emt 0:00:13]} Ba5 {[%emt 0:00:39]} 32. Qe5+ {[%emt 0:00:11]} Qxe5 {[%emt 0:00:04]} 33. dxe5 $11 {[%emt 0:00:02][%mdl 4096] Endgame KBB-KBN} a3 {[%emt 0:00:05]} 34. b4 {[%emt 0:00:07]} Bb6 {[%emt 0:00:11]} 35. c4 {[%emt 0:00:01]} bxc4 {[%emt 0:00:14]} 36. Bxc4 {[%emt 0:00:01]} Nc7 {[%emt 0:00:06]} 37. Bc1 {[%emt 0:00:14]} Bd4 {[%emt 0:00:01]} (37... Nb5 $1 $11 {remains equal.}) 38. Bxa3 $16 {[%emt 0:00:01] A strong pair of Bishops.} Bxe5 {[%emt 0:00:00]} ({Black should try} 38... Bc3 $1 $14) 39. Bc1 $18 {[%emt 0:00:06]} Bc3 {[%emt 0:00:01] [#]} 40. a3 {[%emt 0:00:14]} (40. Bf4 $1 $18 {[%cal Rf4c7]} Ne8 41. a3) 40... Kf8 $16 {[%emt 0:00:02]} 41. Kf3 {[%emt 0:00:02] aiming for Ke2.} Ke7 {[%emt 0:00:07]} (41... Nb5 $16) 42. Ke2 {[%emt 0:00:03]} ({Better is} 42. Be3 $18) 42... Ne6 {[%emt 0:00:07]} (42... Nb5 $16) 43. Bd2 {[%emt 0:00:11]} Bd4 {[%emt 0:00:13]} (43... Nd4+ $142 44. Kd1 Bxd2 45. Kxd2 f4) 44. a4 $18 {[%emt 0:00:04][%cal Ba3a4,Ba4a5][%mdl 32]} Kd6 {[%emt 0:00:03]} 45. a5 {[%emt 0:00:03]} Kc7 {[%emt 0:00:18]} 46. b5 {[%emt 0:00:13]} cxb5 {[%emt 0:00:01]} 47. Bxb5 {[%emt 0:00:01] Black must now prevent Be8.} Nc5 $2 {[%emt 0:00:04]} (47... f4 48. gxf4 Kd6) 48. Be8 {[%emt 0:00:01]} Ne4 {[%emt 0:00:03]} 49. Be1 {[%emt 0:00:06]} (49. Bf4+ $18 Kb7 50. Bxf7) 49... Nd6 $16 {[%emt 0:00:01]} 50. Ba4 {[%emt 0:00:03]} Kb7 {[%emt 0:00:04]} (50... Bc5 $16 {was necessary.} 51. f4 Kb7) 51. Kd3 {[%emt 0:00:01]} (51. Bb4 $18 Kc7 52. f4) 51... Bc5 {[%emt 0:00:01]} 52. Bb3 {[%emt 0:00:02]} f6 $2 {[%emt 0:00:04]} (52... Ka6 $16 {is a better defense.} 53. f4 Kb5) 53. Bc4 $2 {[%emt 0:00:01]} (53. f4 $18) 53... Ne4 $2 {[%emt 0:00:02][%mdl 8192]} (53... Nxc4 $11 {and Black stays safe.} 54. Kxc4 Kc6) 54. f3 {[%emt 0:00:02]} Nd6 {[%emt 0:00:01]} 55. Bd5+ {[%emt 0:00:04]} Ka6 {[%emt 0:00:01]} 56. Bc6 {[%emt 0:00:01]} g5 {[%emt 0:00:01] [#]} 57. g4 $2 {[%emt 0:00:03]} (57. f4 $1 $18) 57... fxg4 {[%emt 0:00:02]} 58. fxg4 {[%emt 0:00:01]} hxg4 59. h5 {[%emt 0:00:01][%cal Bh4h5,Bh5h6,Bh6h7][%mdl 32] Threatens to win with h6.} f5 $2 {[%emt 0:00:09][%mdl 8192]} (59... Nf5 $16) 60. h6 $18 {[%emt 0:00:01]} Nf7 {[%emt 0:00:11]} 61. h7 {Bc3 is the strong threat.} f4 62. Bd5 {[%emt 0:00:02]} Nh8 {[%emt 0:00:01]} 63. Bc3 {[%emt 0:00:01]} g3 {[%emt 0:00:00]} 64. Bxh8 {[%emt 0:00:01] Weighted Error Value: White=0.49/Black=0.69} 1-0

[Event "Portuguese Team Blitz-ch 2022"]
[Site "Viseu"]
[Date "2022.06.12"]
[Round "3.2"]
[White "Santos, Antonio P"]
[Black "Martins, Bruno Andre Leite"]
[Result "0-1"]
[ECO "A40"]
[WhiteElo "2182"]
[BlackElo "2327"]
[Annotator "TA"]
[PlyCount "68"]
[EventDate "2022.06.12"]
[EventType "team-tourn"]
[EventCountry "POR"]
[SourceTitle "playchess.com"]
[Source "ChessBase"]
[SourceQuality "1"]
[TimeControl "180+2"]

{[%evp 10,68,55,45,47,46,59,57,80,84,99,86,104,93,80,77,88,104,85,81,125,67,62,14,54,10,14,18,8,0,0,-43,-51,-62,-57,-72,-58,-63,-65,-93,-90,-107,-82,-268,-117,-360,-24,-689,-622,-684,-689,-737,-713,-718,-503,-671,-662,-947,-947,-895,-881]} 1. d4 e6 2. c4 b6 3. e4 Bb7 4. Nc3 Bb4 5. Bd3 Nf6 6. f3 Bxc3+ {A50: Queen's Fianchetto Defence (1 d4 Nf6 2 c4 b6).} 7. bxc3 d6 8. Ne2 Nbd7 {White is slightly better.} 9. O-O e5 10. Be3 {[#]} h6 $146 {[%cal Bh7h6,Bh6h5,Bh5h4][%mdl 32]} ({Predecessor:} 10... O-O 11. g4 Ne8 12. Ng3 g5 13. Qd2 h6 14. Nf5 Qf6 15. h4 Kh7 16. hxg5 hxg5 17. Bxg5 Qh8 18. Rf2 Qg8 19. Rh2+ Kg6 20. Rh6# {1-0 (20) Reinaldo Dos Santos,J (1946)-Oliveira,F (1229) Pocos de Caldas 2017}) 11. a4 a5 12. Ng3 Qe7 13. Nf5 {[%csl LRe7,LRg7]} Qf8 14. Qd2 h5 15. Qf2 ({Better is} 15. Bg5 $16) 15... g6 16. Ng3 (16. Nh4 $14) 16... Qe7 (16... h4 $5 {[%cal Rh4g3]} 17. Nh1 Nh5 $11) 17. Rab1 h4 18. Ne2 Bc6 19. h3 Nh5 20. d5 Bb7 21. c5 Nxc5 22. Bxc5 dxc5 23. Bb5+ Kf8 24. Rfd1 {[%cal Od5d6]} Rd8 25. c4 Rd6 26. Rb3 $2 {[#]} (26. Qe3 $17 {keeps fighting.}) 26... Kg7 (26... c6 $19 {has better winning chances.} 27. Bxc6 Bxc6 28. Rxb6 Bxa4 29. Rxd6 Qxd6) 27. Re3 $2 (27. Nc3 $17) 27... Rf6 $2 (27... c6 $19 {White must now prevent ...Qg5.} 28. Ra3 cxb5 29. axb5 Rhd8) 28. d6 $2 {[%mdl 8192]} (28. Qxh4 $11 Nf4 29. Qe1) 28... Rxd6 $19 {Black is clearly winning.} 29. Rxd6 Qxd6 30. Nc3 Qd4 31. Nd5 Bxd5 32. exd5 Nf4 {Prevents Re2.} 33. Re1 Qxf2+ 34. Kxf2 Nd3+ {Weighted Error Value: White=0.73/Black=0.42} 0-1